Cogmind - Beta 16 @@@ ROGUE MODE // 2026.01.22 @ 23:40:38 Player: Rainy Days Result: Destroyed by G-34 Mercenary with Small Laser Performance ------------- Evolutions (0) 0 Regions Visited (4) 800 Robots Destroyed (21) 105 Value Destroyed (359) 359 Prototype IDs (3) 60 Alien Tech Used (0) 0 Bonus (300) 300 TOTAL SCORE: 1624 Bonus ------- Aligned with FarCom 300 Cogmind --------- Core Integrity 0/250 Matter 266/300 Energy 124/250 System Corruption 0% Temperature Cool (98) Movement Treading (320) Ox2 Location -9/Mines Parts ------- > --- POWER (1) -------- Ion Engine > --- PROPULSION (2) --- Light Treads Light Treads > --- UTILITY (2) ------ Huge Storage Unit Weapon Shielding > --- WEAPON (2) ------- Small Laser Light Assault Rifle > --- INVENTORY (25) --- Ion Engine Light Ion Engine Light Treads Light Treads Light Treads Light Treads Light Treads Improved Heat Sink Large Matter Pod (115) Experimental Sensor Array Terrain Scanner Improved Terrain Scanner Targeting Computer Weapon Shielding Weapon Shielding Hacking Suite Recalibrator Decoy Drone Bay EM Pulse Gun Rocket Launcher Hammer Peak State ------------ > --- POWER ------------ Light Ion Engine > --- PROPULSION ------- Light Treads Light Treads > --- UTILITY ---------- Huge Storage Unit Weapon Shielding > --- WEAPON ----------- YOLO Cannon > --- INVENTORY -------- Ion Engine Ion Engine Light Ion Engine Light Treads Light Treads Light Treads Light Treads Light Treads Improved Heat Sink Experimental Sensor Array Terrain Scanner Improved Terrain Scanner Targeting Computer Weapon Shielding Weapon Shielding Hacking Suite Recalibrator Decoy Drone Bay EM Pulse Gun Small Laser Light Assault Rifle Rocket Launcher Hammer [Rating: 30] Favorites ----------- Power Light Ion Engine Engine Light Ion Engine Propulsion Light Treads Treads Light Treads Leg Aluminum Leg Utility Huge Storage Unit Device Improved Terrain Scanner Storage Huge Storage Unit Protection Weapon Shielding Weapon EM Pulse Gun Energy Gun EM Pulse Gun Energy Cannon YOLO Cannon Ballistic Gun Light Assault Rifle Build | -11 -10 -10 -10 -9 ------- Run | Yrd Mat Min Exi Min Slots Evolved . | . . . . . Power . | . . . . . Propulsion . | . . . . . Utility . | . . . . . Weapon . | . . . . . Parts Attached 26 | 6 11 3 3 3 Power 5 | 1 2 1 . 1 Engine 5 | 1 2 1 . 1 Core . | . . . . . Reactor . | . . . . . Propulsion 5 | 2 2 1 . . Treads 3 | . 2 1 . . Leg 2 | 2 . . . . Wheel . | . . . . . Hover . | . . . . . Flight . | . . . . . Utility 6 | 1 4 . 1 . Device 2 | . 1 . 1 . Storage 3 | 1 2 . . . Processor . | . . . . . Hackware . | . . . . . Protection 1 | . 1 . . . Artifact . | . . . . . Weapon 10 | 2 3 1 2 2 Energy Gun 6 | 2 3 . . 1 Energy Cannon 2 | . . . 2 . Ballistic Gun 2 | . . 1 . 1 Ballistic Cannon . | . . . . . Launcher . | . . . . . Special Weapon . | . . . . . Impact Weapon . | . . . . . Slashing Weapon . | . . . . . Piercing Weapon . | . . . . . Special Melee Weapon . | . . . . . Unidentified Prototypes 3 | . . . 3 . Parts Lost 5 | . 3 1 . 1 Power 1 | . . . . 1 Propulsion 1 | . . 1 . . Utility . | . . . . . Weapon 3 | . 3 . . . Highest Loss Streak 2 | . 2 1 . 1 To Critical Strikes . | . . . . . Average Backups 18 | 2 11 20 23 23 Power 2 | . 1 2 3 2 Propulsion 4 | 1 4 5 5 5 Utility 7 | . 3 8 10 11 Weapon 3 | . 1 3 5 4 Tool/Special . | . . . . . Unused Backups 19 | . 3 . . 16 Power . | . . . . . Propulsion 7 | . 2 . . 5 Utility 9 | . . . . 9 Weapon 3 | . 1 . . 2 Tool/Special . | . . . . . Average Slot Usage (%) 95 | . 99 100 90 88 Engine 14 | . 14 14 14 14 Treads 26 | . 24 28 28 28 Leg 1 | . 3 . . . Device 4 | . 13 . . . Storage 14 | . 14 14 14 14 Protection 9 | . . 14 13 14 Energy Gun 15 | . 27 15 5 2 Energy Cannon 3 | . . . 8 11 Ballistic Gun 5 | . . 12 5 2 Peak Build Rating 30 | 6 11 12 30 30 Average Rating 15 | 5 9 10 23 23 On Entrance 11 | . 6 9 12 30 Avg Prop Armor Cover (%) . | . . . . . Naked Turns . | . . . . . Heaviest Build 102 | 14 90 90 102 102 Greatest Support 40 | 20 40 40 40 40 Greatest Overweight (x) 4 | . 2 4 2 2 Average Overweight (x) 1 | . 1 2 2 2 Largest Inventory Capacity 25 | 8 25 25 25 25 Average Capacity 22 | 7 19 25 25 25 Most Carried 25 | 6 19 24 25 25 Average Carried 18 | 2 11 21 24 24 Final Capacity 25 | 8 25 25 25 25 Final Carried 25 | 6 18 24 25 22 Class Distribution -------------------- 100% | Mutant Dominant Class ---------------- Mutant | -10/Materials Mutant | -10/Mines Mutant | -10/Exiles Mutant | -9/Mines Resources | -11 -10 -10 -10 -9 ----------- Run | Yrd Mat Min Exi Min Matter Collected 448 | 248 103 57 40 . Remotely . | . . . . . Salvage Created 897 | 74 645 178 . . Parts 37 | 5 31 1 . . Haulers Intercepted . | . . . . . Recyclers Shooed 3 | . 3 . . . Parts Field Recycled . | . . . . . Retrieved Matter . | . . . . . Parts Self-Destructed . | . . . . . Prevented . | . . . . . Parts Restored . | . . . . . Kills | -11 -10 -10 -10 -9 ------- Run | Yrd Mat Min Exi Min Combat Hostiles Destroyed 15 | . 8 7 . . Guns 11 | . 4 7 . . AOE 4 | . 4 . . . Classes Destroyed 9 | 2 6 1 . . Worker 2 | . 2 . . . Tunneler 1 | 1 . . . . Recycler 4 | 1 2 1 . . Mechanic 1 | . 1 . . . Operator 2 | . 2 . . . Watcher 3 | . 3 . . . Swarmer 3 | . 3 . . . Grunt 5 | . 5 . . . Assembled 7 | . . 7 . . Best Kill Streak 3 | 1 3 3 . . Combat Bots Only 3 | . 3 1 . . Max Kills in Single Turn 2 | 1 2 1 . . Gunslinging . | . . . . . Exploded 2 | . 2 . . . Melee . | . . . . . Uniques/NPCs Destroyed . | . . . . . Combat | -11 -10 -10 -10 -9 -------- Run | Yrd Mat Min Exi Min Hostile Shots Fired 88 | . 40 28 . 20 Missed 26 | . 14 6 . 6 Hits 62 | . 26 22 . 14 Projectile 62 | . 26 22 . 14 Critical Strikes 2 | . . 1 . 1 Part Disruptions 2 | . . 2 . . Actively Blocked 1 | . . 1 . . Damage Taken 972 | 37 429 312 . 194 Core 257 | . 92 93 . 72 Absorbed by Shields . | . . . . . Redirected to Shielding 26 | . 7 6 . 13 Core Remaining (%) 100 | 100 . . . . Volleys Fired 80 | 5 47 23 . 5 Largest 2 | 2 2 2 . 2 Hottest 100 | 80 80 70 . 100 Shots Fired 151 | 10 86 46 . 9 Gun 150 | 10 86 46 . 8 Cannon 1 | . . . . 1 Launcher . | . . . . . Special . | . . . . . Kinetic 27 | . . 23 . 4 Thermal 28 | . . 23 . 5 Explosive . | . . . . . Electromagnetic 96 | 10 86 . . . Robot Hit Streak 7 | 3 7 6 . 5 Robot Miss Streak 4 | 1 4 3 . 1 Penetration Max . | . . . . . Secondary Targets . | . . . . . Shots Hit Robots 87 | 6 48 27 . 6 Core Hits 46 | 3 26 15 . 2 Critical Kills . | . . . . . Critical Parts Destroyed . | . . . . . Critical Strikes 4 | 1 1 2 . . Burn 2 | . . 2 . . Corrupt 2 | 1 1 . . . Melee Attacks . | . . . . . Impact . | . . . . . Slashing . | . . . . . Piercing . | . . . . . Sneak Attacks . | . . . . . Combat Hostiles . | . . . . . Follow-up Attacks . | . . . . . Damage Inflicted 1454 | 100 1000 298 . 56 Guns 1136 | 79 703 298 . 56 Cannons . | . . . . . Explosions 318 | 21 297 . . . Melee . | . . . . . Ramming . | . . . . . Kinetic 146 | . . 122 . 24 Thermal 526 | 21 297 176 . 32 Explosive . | . . . . . Electromagnetic 782 | 79 703 . . . Impact . | . . . . . Slashing . | . . . . . Piercing . | . . . . . Highest Corruption . | . . . . . Average Corruption . | . . . . . Corruption Purged . | . . . . . Corruption Blocked . | . . . . . Overload Shots . | . . . . . Overflow Damage 29 | . 29 . . . Projectiles . | . . . . . Explosions 29 | . 29 . . . Melee . | . . . . . Knockbacks . | . . . . . Impact . | . . . . . Kinetic . | . . . . . Secondary . | . . . . . Self-Inflicted Damage 202 | 37 165 . . . Shots 7 | 1 6 . . . Rammed . | . . . . . Targets Rammed . | . . . . . Kicked . | . . . . . Crushed . | . . . . . Highest Temperature 216 | 84 216 150 . 92 Average Temperature 49 | 38 48 58 . 28 Received Heat Transfer 334 | . 105 100 . 129 Siege Activations . | . . . . . Martial Activations . | . . . . . Shielding Activations . | . . . . . Robots Disrupted 1 | 1 . . . . Combat Hostiles . | . . . . . Robots Corrupted . | . . . . . Combat Hostiles . | . . . . . Parts Fried 3 | 1 2 . . . Impact Corruptions . | . . . . . Robots Melted . | . . . . . Combat Hostiles . | . . . . . Parts Melted . | . . . . . Heat Transferred 1091 | 50 300 666 . 75 Parts Sabotaged . | . . . . . Parts Stolen . | . . . . . Parts Stripped . | . . . . . Power Chain Reactions 9 | 1 8 . . . Alert | -11 -10 -10 -10 -9 ------- Run | Yrd Mat Min Exi Min Maximum Alert Level . | . . . . . Low Security (%) 100 | 100 100 100 . 100 Level 1 . | . . . . . Level 2 . | . . . . . Level 3 . | . . . . . Level 4 . | . . . . . Level 5 . | . . . . . High Security . | . . . . . Max Security . | . . . . . Peak Influence 98 | 5 98 21 . 8 Initial 21 | . . 21 . . Average 9 | . 17 . . . Influence Increases 348 | 10 325 5 . 8 Destroy 0b10 Robot/C 160 | . 160 . . . Destroy 0b10 Robot/NC 65 | 10 50 5 . . Destroy Leader 46 | . 46 . . . Successful Hack 13 | . 13 . . . Disable Machine 30 | . 30 . . . Destroy Structure 34 | . 26 . . 8 Influence Decreases 348 | 10 269 61 . 8 Entered New Map 35 | . . 35 . . Time Decay 275 | 10 239 26 . . Lost Part 38 | . 30 . . 8 Squads Dispatched 3 | . 3 . . . Investigation 2 | . 2 . . . Extermination . | . . . . . Reinforcement 1 | . 1 . . . Assault . | . . . . . Garrison . | . . . . . Intercept . | . . . . . Searches Triggered . | . . . . . Construction Impeded . | . . . . . Haulers Reinforced . | . . . . . Active Scanning Responses . | . . . . . Cargo Convoy Interrupts . | . . . . . Stealth | -11 -10 -10 -10 -9 --------- Run | Yrd Mat Min Exi Min Distress Signals . | . . . . . Communications Jammed . | . . . . . Distress Signals . | . . . . . Times Spotted 30 | . 15 12 . 3 Peak Tracking Total 3 | . 3 3 . 3 Tactical Retreats 5 | . . 5 . . Traps | -11 -10 -10 -10 -9 ------- Run | Yrd Mat Min Exi Min Traps Triggered 1 | . 1 . . . Indirectly . | . . . . . Trap Hack Attempts . | . . . . . Triggered . | . . . . . Disarmed . | . . . . . Reprogrammed . | . . . . . Reused . | . . . . . Traps Extracted . | . . . . . Installed . | . . . . . Triggered . | . . . . . Machines | -11 -10 -10 -10 -9 ---------- Run | Yrd Mat Min Exi Min Machines Disabled 2 | . 2 . . . Max in Single Turn 1 | . 1 . . . Machines Repaired . | . . . . . Machines Dismantled . | . . . . . Machines Sabotaged . | . . . . . Overloaded Fab Kills . | . . . . . Hacking | -11 -10 -10 -10 -9 --------- Run | Yrd Mat Min Exi Min Machines Accessed 12 | . 8 1 3 . Terminals 7 | . 7 . . . Fabricators . | . . . . . Repair Stations . | . . . . . Recycling Units 1 | . 1 . . . Scanalyzers . | . . . . . Garrison Access . | . . . . . Total Hacks 55 | . 20 1 34 . Successful 44 | . 9 1 34 . Failed 11 | . 11 . . . Catastrophic . | . . . . . Database Lockouts . | . . . . . Manual 5 | . 3 1 1 . Terminals 17 | . 17 . . . Fabricators . | . . . . . Repair Stations . | . . . . . Recycling Units 3 | . 3 . . . Scanalyzers . | . . . . . Garrison Access . | . . . . . Terminal Hacks 42 | . 7 1 34 . Record 37 | . 3 . 34 . Open Door 1 | . . 1 . . Branch Access Points 1 | . 1 . . . Locate Traps 1 | . 1 . . . Dispatch Records 1 | . 1 . . . Recall Investigation 1 | . 1 . . . Fabricator Hacks . | . . . . . Repair Station Hacks . | . . . . . Recycling Unit Hacks 1 | . 1 . . . Retrieve Components 1 | . 1 . . . Scanalyzer . | . . . . . Garrison Access Hacks . | . . . . . Unauthorized Hacks 1 | . 1 . . . Terminals 1 | . 1 . . . Botnet 1 | . 1 . . . Fabricators . | . . . . . Repair Stations . | . . . . . Recycling Units . | . . . . . Scanalyzers . | . . . . . Garrison Access . | . . . . . Data Cores Recovered . | . . . . . Used . | . . . . . Hacking Detections 6 | . 6 . . . Full Trace Events 1 | . 1 . . . Feedback Events . | . . . . . Feedback Blocked . | . . . . . Robot Schematics Acquired . | . . . . . Robots Built . | . . . . . Authchips . | . . . . . Time . | . . . . . Total Robot Build Rating . | . . . . . Part Schematics Acquired . | . . . . . Parts Built . | . . . . . Authchips . | . . . . . Time . | . . . . . Total Part Build Rating . | . . . . . Part Studies Acquired . | . . . . . Parts Repaired . | . . . . . Time . | . . . . . Parts Recycled . | . . . . . Recycled Matter . | . . . . . Retrieved Matter . | . . . . . Retrieved Components 2 | . 2 . . . Parts Scanalyzed . | . . . . . Part Schematics Acquired . | . . . . . Parts Damaged . | . . . . . Bothacking | -11 -10 -10 -10 -9 ------------ Run | Yrd Mat Min Exi Min Used RIF Installer . | . . . . . Robots Hacked . | . . . . . Non-combat . | . . . . . Combat . | . . . . . Robot Hacks Applied . | . . . . . Relay Couplers Released . | . . . . . Fabnet Peak Effective % . | . . . . . Robots Rewired . | . . . . . Allies Hacked . | . . . . . Hacks Repelled . | . . . . . Allies | -11 -10 -10 -10 -9 -------- Run | Yrd Mat Min Exi Min Total Allies . | . . . . . Largest Group . | . . . . . Highest-Rated Group . | . . . . . Highest-Rated Ally . | . . . . . Total Orders . | . . . . . Ally Attacks . | . . . . . Total Damage . | . . . . . Kills . | . . . . . Allies Corrupted . | . . . . . Allies Melted . | . . . . . Intel | -11 -10 -10 -10 -9 ------- Run | Yrd Mat Min Exi Min Active Infowar (turns) 1525 | . 1525 . . . Terrain 1525 | . 1525 . . . Robot Analysis Total . | . . . . . Derelict Logs Recovered 1 | . . 1 . . Drone Launches 1 | . . . 1 . Drone Recoveries . | . . . . . Exploration | -11 -10 -10 -10 -9 ------------- Run | Yrd Mat Min Exi Min Turns Passed 4948 | 111 1584 1189 2023 41 Spaces Moved 1537 | 71 534 295 630 7 Core 5 | 5 . . . . Treads 1347 | . 415 295 630 7 Legs 185 | 66 119 . . . Wheels . | . . . . . Hover . | . . . . . Flight . | . . . . . Fastest Speed 50 | 50 120 320 320 320 Average Speed 283 | 115 241 320 320 320 Slowest Speed 480 | 120 320 480 320 320 Overloaded Moves . | . . . . . Propulsion Burnouts . | . . . . . Robots Hopped . | . . . . . Potential Cave-ins . | . . . . . Cave-ins Triggered . | . . . . . Exploration Rate (%) 46 | 5 76 49 91 9 Regions Visited 4 Branch Regions 3 Pre-discovered Areas 1 | . . . 1 . Known Exits Taken 1 | . 1 . . . Unknown Exits Taken 3 | 1 . 1 1 . Scrap Searched . | . . . . . Spaces Dug . | . . . . . Terrain Destroyed 32 | . 23 . . 9 Melee . | . . . . . Projectile 1 | . . . . 1 AOE 31 | . 23 . . 8 Terrain Rammed . | . . . . . Walls Destroyed . | . . . . . Machines Disabled . | . . . . . Actions | -11 -10 -10 -10 -9 --------- Run | Yrd Mat Min Exi Min Total 1988 | 87 748 498 639 16 Wait 303 | . 130 173 . . Move 1533 | 70 533 294 629 7 Hop . | . . . . . Pick Up 30 | 6 18 5 1 . Fast Attach 13 | 6 3 . 4 . Attach 8 | . 4 1 . 3 Detach 1 | . 1 . . . Swap 6 | . 4 2 . . Drop 14 | . 8 . 5 1 Fire 80 | 5 47 23 . 5 Melee . | . . . . . Ram . | . . . . . Kick . | . . . . . Crush . | . . . . . Escape Stasis . | . . . . . Rewire . | . . . . . Trap . | . . . . . Miscellaneous . | . . . . . Route ------- -11/Scrapyard -10/Materials (discovered 2 exits: *Mat / *Min) -10/Mines (discovered 3 exits: *Mat x2 / *Exi) -10/Exiles (discovered 2 exits: [*Min x2]) -9/Mines History --------- Turn | Location | Event 8 | -11/Scrapyard | Discovered new exit (range 15) 112 | -11/Scrapyard | Entered Materials 264 | -10/Materials | Discovered new exit (range 15) 325 | -10/Materials | Build established: Mutant 1210 | -10/Materials | Identified exit to Mines 1696 | -10/Materials | Entered Mines 1710 | -10/Mines | Assembled infested the area 1910 | -10/Mines | Core integrity fell below 50% 1946 | -10/Mines | Found a damaged Exp. Sensor Array with a note attached 1952 | -10/Mines | Found Prototype Device 1985 | -10/Mines | Identified exit to Materials 2181 | -10/Mines | Discovered exit to Materials (range 12) 2259 | -10/Mines | Received a Rocket Launcher from a helpful Derelict 2555 | -10/Mines | Deemed a non-threat by the Exiles lab entrance 2558 | -10/Mines | Discovered new exit (range 5) 2658 | -10/Mines | Found the Drone Emporium 2673 | -10/Mines | Found Prototype Device 2885 | -10/Mines | Entered Exiles 2981 | -10/Exiles | Discovered new exit (range 15) 3029 | -10/Exiles | Met 8R-AWN 3103 | -10/Exiles | Met EX-HEX 3247 | -10/Exiles | Met EX-BIN 3449 | -10/Exiles | Aligned with FarCom system 3452 | -10/Exiles | Given EX-Vault access code 3548 | -10/Exiles | Opened EX-Vault 3561 | -10/Exiles | Found Prototype Device 3561 | -10/Exiles | Identified Supersonic Drone Bay 3603 | -10/Exiles | Found Prototype Energy Cannon 3603 | -10/Exiles | Identified Latent Energy Streamer 3611 | -10/Exiles | Found Prototype Energy Cannon 3611 | -10/Exiles | Identified YOLO Cannon 3688 | -10/Exiles | Warned to stay clear of 0b10 Research branches 3780 | -10/Exiles | Met EX-DEC 3944 | -10/Exiles | Learned location of Zion (-6) 4088 | -10/Exiles | Discovered new exit (range 14) 4351 | -10/Exiles | Visited The Gauntlet 4908 | -10/Exiles | Left Exiles lab with YOLO Cannon 4908 | -10/Exiles | Entered Mines 4937 | -9/Mines | Core integrity fell below 20% 4949 | -9/Mines | Destroyed by G-34 Mercenary with Small Laser Last Messages --------------- thromdimbulator! ZX-C33: The latest FarCom iteration passed all tests with flying colors, we'll be weaving between patrols like ghosts in no time! I probably said something like that last time, but hopefully no one remembers what really happened. AM-PHS: That's RA-1N3's workstation, which we keep unoccupied as a tribute. RA-1N3 was always up for doing crazy stuff, the only one brave enough to try out the Chronowheel, only to never be seen again. 04824_ Extracted 40 matter. 04827_ Acquired Lrg. Matter Pod. LOCATION=UNKNOWN GOAL=ESCAPE 04908_ Receiving FarCom transmissions... 04934_ Lgt. Ion Engine destroyed. 04935_ Dropped YOLO Cannon. 04948_ Critical hit (Burn: +37). Map ----- +----------------------------------------------------+ | ??????????????????????????????????? | | ??????????????????????????????????? | | ??????????????????????????????????? | | ??????????????????????????????????? | | ??????????????????????????????????? | | ??????????????????????????????????? | | ??????????????????????????????????? | | ??????????????????????????????????? | | ??????????????????????????????????? | | ??????????????????????????????????? | | ??????????????????????????????????? | | ??????????????????????????????????? | | ??????????????????????????????????? | | ?????????????????????? ???????????? | | ????????????????????? ??????????? | | ???????????????????? ???????????? | | ???????????????????? #???????????? | | ??????????????????? #???????????? | | ??????????????????? ##??????????? | | ?????????????????? ##?????????? | | ?????????????????? ##????????? | | ?????????????????# #????????? | | ???# ???????????? #????????? | | ??# ""???????### #?????????? | | ??# """ ###### #?????????? | | ???# """ g@ g ;;; #?????????? | | ???# ###### #;;; ; #?????????? | | ???## ??????## ##### #???? | | ????#????????# #?????????? | | ???????g???# #### $#?????????? | | ??????????# #???????????????? | | ???????? ##???????????????? | | ?????? ## #????????????????? | | ?????# #?### #????????????????? | | ?????# ????# #????????????????? | | ????# ?????# #????????????????? | | ???# ??????#g#????????????????? | | ???? ????????g#????????????????? | | ???? ???????? #????????????????? | | ?????? ????????g #????????????????? | | ????????????????#?????????????????? | | ??????????????????????????????????? | | ??????????????????????????????????? | | ??????????????????????????????????? | | ??????????????????????????????????? | | ??????????????????????????????????? | | ??????????????????????????????????? | | ??????????????????????????????????? | | ??????????????????????????????????? | | ??????????????????????????????????? | +----------------------------------------------------+ Best States ------------- Heat Dissipation 25 Energy Generation 10 Energy Capacity 250 Matter Stores 300 Matter Capacity 300 Sight Range 16 Terrain Scan Range 16 Terrain Scan Density 10 Weapon Shielding 33 Evasion (%) 55 Recoil Reduction 2 Item Schematics ----------------- None Robot Schematics ------------------ None Fabricated ------------ Nothing Repaired ---------- Nothing Studied --------- None Alien Tech Used ----------------- None Achievements -------------- Sixth Sense Challenges ------------ None Game ------ Seed GyrokineticBarrageDeflector Manual? 0 Play Time 00:32:43 Cumulative 186.7 hours Start 2026.01.22 @ 23:05:04 End 2026.01.22 @ 23:40:38 Sessions 1 Manual Loads 0 Difficulty Rogue Special Mode None Game No. 64 Rogue 64 Adventurer 0 Explorer 0 Win Type - Total 4 Types 2/0/1/0/0/1/0/0/0/0 Lore% 37 Gallery% 58 Achievement% 38 Wizard Run 0 Options --------- Layout 2 ASCII 0 Keyboard 0 Movement Mouse Keybinds 0 Fullscreen 1 Font 24/Smallcaps Map View 50x44 Zoom Use 0% Tactical HUD 1 Map Filters NONE Filters NONE Steam 1 RUN: bb2bce94-664e-469e-8e29-72220d22ceea